[Event "Czech Youth U14 Girls 2024"]
[Site "Kouty nad Desnou"]
[Date "2024.03.10"]
[Round "2.13"]
[White "Spetlova, Stella"]
[Black "Sochorova, Valentyna"]
[Result "0-1"]
[ECO "A84"]
[WhiteElo "1405"]
[BlackElo "1485"]
[Annotator "NA RC"]
[PlyCount "76"]
[EventDate "2024.03.10"]
[EventType "swiss"]
[EventCountry "CZE"]
[SourceTitle "playchess.com"]
[Source "ChessBase"]
[SourceQuality "1"]
[TimeControl "40/5400+30:1800+30"]

1. d4 {[%emt 0:00:18]} f5 {[%emt 0:01:07]} 2. c4 {[%emt 0:00:45]} g6 {[%emt 0:00:25]} 3. Nc3 {[%emt 0:02:04]} Nf6 {[%emt 0:00:21]} 4. Bg5 {[%emt 0:02:36]} Bg7 {[%emt 0:00:37]} 5. h3 {[%emt 0:03:54]} O-O {[%emt 0:00:52]} 6. e3 {[%emt 0:00:58]} d6 {[%emt 0:02:06]} 7. Nf3 {[%emt 0:03:09]} Qe8 {[%emt 0:02:15]} 8. Qb3 {[%emt 0:06:50]} e5 {[%emt 0:11:10]} 9. Bxf6 {[%emt 0:03:52]} Rxf6 {[%emt 0:13:33]} 10. Nd5 {[%emt 0:03:24]} Rf7 {[%emt 0:01:00]} 11. Ng5 Rd7 {[%emt 0:02:45]} 12. c5 {[%emt 0:06:21]} Kh8 {[%emt 0:02:22]} 13. cxd6 {[%emt 0:01:55]} cxd6 {[%emt 0:19:18]} 14. dxe5 {[%emt 0:11:01]} dxe5 {[%emt 0:04:58]} 15. Rc1 {[%emt 0:00:51]} Nc6 16. h4 Na5 {[%emt 0:11:50]} 17. Qb5 {[%emt 0:02:38]} Qd8 {[%emt 0:02:05]} 18. Nc3 {[%emt 0:08:07]} a6 {[%emt 0:05:05]} 19. Qe2 {[%emt 0:04:16]} Rc7 {[%emt 0:05:00]} 20. Rd1 {[%emt 0:04:10]} Qg8 {[%emt 0:01:35]} 21. Qd2 {[%emt 0:05:06]} Be6 {[%emt 0:04:52]} 22. Qd6 {[%emt 0:02:22]} Rc6 {[%emt 0:00:26]} 23. Qd2 {[%emt 0:07:23]} Bf6 {[%emt 0:03:58]} 24. Nxe6 {[%emt 0:01:29]} Qxe6 {[%emt 0:00:42]} 25. g3 {[%emt 0:03:53]} Rd8 {[%emt 0:00:51]} 26. Qe2 {[%emt 0:01:25]} Rcd6 {[%emt 0:01:20]} 27. Rxd6 {[%emt 0:02:03]} Qxd6 {[%emt 0:00:14]} 28. Qc2 {[%emt 0:00:51]} Qc6 {[%emt 0:01:36]} 29. Rg1 {[%emt 0:01:12]} b5 {[%emt 0:01:12]} 30. a3 {[%emt 0:02:15]} Nc4 {[%emt 0:00:50]} 31. Bxc4 {[%emt 0:00:43]} Qxc4 {[%emt 0:00:13]} 32. Qe2 {[%emt 0:01:16]} Qb3 {[%emt 0:00:48]} 33. Kf1 {[%emt 0:00:54]} e4 {[%emt 0:00:39]} 34. Qe1 {[%emt 0:01:28]} b4 {[%emt 0:00:41]} 35. axb4 {[%emt 0:00:33]} Qxb2 {[%emt 0:00:30]} 36. Ne2 {[%emt 0:00:48]} Rd2 {[%emt 0:00:30]} 37. Nf4 {[%emt 0:01:21]} Bc3 {[%emt 0:00:33]} 38. Ne6 {[%emt 0:01:17]} Qxb4 {[%emt 0:00:31]} 0-1

[Event "Czech Youth U14 Girls 2024"]
[Site "Kouty nad Desnou"]
[Date "2024.03.11"]
[Round "3.1"]
[White "Horkova, Tereza"]
[Black "Barteckova, Valerie"]
[Result "1-0"]
[ECO "C02"]
[WhiteElo "1845"]
[BlackElo "1687"]
[Annotator "NA RC"]
[PlyCount "79"]
[EventDate "2024.03.10"]
[EventType "swiss"]
[EventCountry "CZE"]
[SourceTitle "playchess.com"]
[Source "ChessBase"]
[SourceQuality "1"]
[TimeControl "40/5400+30:1800+30"]

1. e4 {[%emt 0:00:03]} e6 {[%emt 0:00:05]} 2. d4 {[%emt 0:00:10]} d5 {[%emt 0:00:06]} 3. e5 {[%emt 0:00:06]} c5 {[%emt 0:00:13]} 4. c3 {[%emt 0:00:13]} Nc6 {[%emt 0:00:17]} 5. Nf3 {[%emt 0:00:11]} Bd7 {[%emt 0:00:24]} 6. Be2 {[%emt 0:00:27]} Qb6 {[%emt 0:00:52]} 7. O-O {[%emt 0:00:23]} cxd4 {[%emt 0:00:40]} 8. cxd4 {[%emt 0:00:16]} Nge7 {[%emt 0:00:43]} 9. Na3 {[%emt 0:00:34] outshines the older 9.Nc3.} Nf5 {[%emt 0:01:53]} 10. Nc2 {[%emt 0:00:17]} Be7 {[%emt 0:02:16]} 11. g3 {[%emt 0:02:35] C02: French: Advance Variation.} O-O {[%emt 0:05:13]} 12. h4 $146 {[%emt 0:00:58]} ({Predecessor:} 12. Bd3 f6 13. Bxf5 exf5 14. Ne3 Be6 15. Re1 fxe5 16. dxe5 Rad8 17. Ng2 d4 18. Nf4 Nb4 {1-0 Kiolbasa,O (2375)-Bayat,S (2092) Speed Chess (Women) Q1 blitz 2022 (3)}) 12... Rac8 {[%emt 0:08:39]} 13. Kg2 {[%emt 0:02:50]} Nb4 {[%emt 0:07:44]} 14. Nxb4 {[%emt 0:01:16]} Qxb4 {[%emt 0:06:14]} 15. a3 {[%emt 0:21:07]} Qb6 {[%emt 0:01:23]} 16. g4 {[%emt 0:04:24]} Nxh4+ {[%emt 0:00:08]} 17. Nxh4 {[%emt 0:00:13]} Bxh4 {[%emt 0:00:04]} 18. g5 $1 {[%emt 0:08:06]} Rxc1 {[%emt 0:06:53]} 19. Rxc1 {[%emt 0:11:07]} Bxg5 {[%emt 0:00:25]} 20. f4 {[%emt 0:00:53]} Bh6 {[%emt 0:06:26]} 21. b4 {[%emt 0:02:23]} Rc8 {[%emt 0:03:32]} 22. Rxc8+ {[%emt 0:00:55]} Bxc8 {[%emt 0:00:05] [#]} 23. Qc2 {[%emt 0:06:15]} (23. Qa4 $1 $18 {[%cal Ra4e8]} Qd8 24. Qxa7) 23... Bd7 {[%emt 0:02:02]} 24. Qc5 {[%emt 0:03:32]} Qxc5 {[%emt 0:03:31]} 25. bxc5 {[%emt 0:01:10]} Kf8 {[%emt 0:01:23]} 26. Kf3 {[%emt 0:02:54]} a6 {[%emt 0:03:09]} 27. Rb1 {[%emt 0:01:13]} g5 {[%emt 0:14:57]} 28. Rxb7 {[%emt 0:01:19]} Ke8 {[%emt 0:02:25]} 29. fxg5 {[%emt 0:02:34]} Bxg5 {[%emt 0:00:15]} 30. Bxa6 $18 {[%emt 0:00:31]} Kd8 {[%emt 0:04:13]} 31. Bb5 {[%emt 0:02:02]} Bxb5 {[%emt 0:00:30]} 32. Rxb5 {[%emt 0:00:01]} Kc8 {[%emt 0:04:36]} 33. a4 {[%emt 0:00:28]} Bd8 {[%emt 0:00:09]} 34. a5 {[%emt 0:00:21]} Bc7 {[%emt 0:00:08]} 35. a6 {[%emt 0:00:28]} Bb8 {[%emt 0:00:07]} 36. Rb7 {[%emt 0:00:50]} Bc7 {[%emt 0:00:32]} 37. c6 {[%emt 0:00:15]} Bb8 {[%emt 0:00:31]} 38. a7 {[%emt 0:00:13]} Bc7 {[%emt 0:00:09]} 39. a8=Q+ {[%emt 0:00:11]} Bb8 {[%emt 0:00:06]} 40. Qxb8# 1-0

[Event "Czech Youth U14 Girls 2024"]
[Site "Kouty nad Desnou"]
[Date "2024.03.11"]
[Round "3.2"]
[White "Bartova, Hana"]
[Black "Slivova, Linda"]
[Result "1/2-1/2"]
[ECO "C29"]
[WhiteElo "1667"]
[BlackElo "1824"]
[Annotator "NA RC"]
[PlyCount "61"]
[EventDate "2024.03.10"]
[EventType "swiss"]
[EventCountry "CZE"]
[SourceTitle "playchess.com"]
[Source "ChessBase"]
[SourceQuality "1"]
[TimeControl "40/5400+30:1800+30"]

1. e4 {[%emt 0:00:10]} e5 {[%emt 0:00:09]} 2. Nc3 {[%emt 0:00:22]} Nf6 {[%emt 0:01:55]} 3. f4 {[%emt 0:01:03]} d5 {[%emt 0:12:05]} 4. fxe5 {[%emt 0:01:08]} Nxe4 {[%emt 0:00:19]} 5. Nf3 {[%emt 0:00:19]} Nxc3 {[%emt 0:01:34]} 6. bxc3 {[%emt 0:00:58]} Be7 {[%emt 0:02:01] C29: Vienna Game: 2...Nf6 3 f4.} 7. d4 {[%emt 0:02:33]} c5 {[%emt 0:02:55]} 8. Be2 {[%emt 0:04:49]} O-O {[%emt 0:04:41]} 9. O-O {[%emt 0:01:39]} Nc6 {[%emt 0:04:03]} 10. Qe1 {[%emt 0:06:45]} Bf5 {[%emt 0:11:15]} 11. Bd3 {[%emt 0:14:30]} Bxd3 {[%emt 0:01:59]} 12. cxd3 {[%emt 0:00:03]} cxd4 {[%emt 0:04:37]} 13. cxd4 {[%emt 0:06:55]} Qb6 {[%emt 0:09:07]} 14. Be3 {[%emt 0:06:47]} Qa6 {[%emt 0:04:11]} 15. Qe2 {[%emt 0:06:05]} Nb4 {[%emt 0:01:40]} 16. Rfd1 {[%emt 0:00:15]} Rac8 {[%emt 0:02:19]} 17. Ne1 {[%emt 0:02:12]} Rc3 {[%emt 0:08:34]} 18. Bd2 {[%emt 0:07:12]} Rc6 {[%emt 0:02:56]} 19. Bxb4 {[%emt 0:06:30]} Bxb4 {[%emt 0:00:24]} 20. Nf3 {[%emt 0:01:38]} Rfc8 {[%emt 0:00:50]} 21. Rab1 {[%emt 0:01:45]} Rc2 {[%emt 0:04:03]} 22. Qe3 {[%emt 0:00:10] [#]} Ba3 $15 {[%emt 0:04:21]} (22... Be7 $1 $17 23. a4 h6 (23... Qxa4 24. e6 $15)) 23. Ra1 {[%emt 0:07:40]} Bb2 {[%emt 0:02:57]} 24. Ne1 {[%emt 0:01:14]} Bxa1 {[%emt 0:01:46]} 25. Nxc2 {[%emt 0:00:05]} Rxc2 {[%emt 0:00:04]} 26. Rxa1 {[%emt 0:00:11]} Rxa2 {[%emt 0:01:03]} 27. Rxa2 {[%emt 0:01:07]} Qxa2 {[%emt 0:00:06]} 28. Qc1 {[%emt 0:00:03]} h6 {[%emt 0:01:33]} 29. Qc8+ {[%emt 0:01:59]} Kh7 {[%emt 0:00:06]} 30. Qf5+ {[%emt 0:00:09]} Kg8 {[%emt 0:01:22]} 31. Qc8+ {[%emt 0:00:05]} 1/2-1/2

[Event "Czech Youth U14 Girls 2024"]
[Site "Kouty nad Desnou"]
[Date "2024.03.11"]
[Round "3.3"]
[White "Kozusnikova, Daniela"]
[Black "Barteckova, Nikol"]
[Result "1-0"]
[ECO "D03"]
[WhiteElo "1809"]
[BlackElo "1612"]
[Annotator "NA RC"]
[PlyCount "111"]
[EventDate "2024.03.10"]
[EventType "swiss"]
[EventCountry "CZE"]
[SourceTitle "playchess.com"]
[Source "ChessBase"]
[SourceQuality "1"]
[TimeControl "40/5400+30:1800+30"]

1. d4 {[%emt 0:00:08]} Nf6 {[%emt 0:00:07]} 2. Bg5 {[%emt 0:00:10]} d5 {[%emt 0:00:27]} 3. Nf3 {[%emt 0:01:43]} c5 {[%emt 0:01:33]} 4. e3 {[%emt 0:03:00]} Nc6 {[%emt 0:03:06]} 5. c4 {[%emt 0:06:54]} e6 {[%emt 0:24:10]} (5... cxd4 $11 {might be stronger.} 6. exd4 h6) 6. Nc3 {[%emt 0:14:06] D03: 1 d4 d5 2 Nf3 Nf6 3 Bg5, including Torre Attack with early ...d5.} (6. cxd5 $14 Qa5+ 7. Nbd2 Nxd5 8. dxc5) 6... cxd4 {[%emt 0:11:28]} 7. Nxd4 {[%emt 0:03:42]} Bb4 {[%emt 0:07:40]} 8. Qb3 {[%emt 0:10:25]} Bxc3+ {[%emt 0:01:47]} 9. Qxc3 {[%emt 0:04:16]} Ne4 {[%emt 0:01:47]} 10. Bxd8 {[%emt 0:01:28]} Nxc3 {[%emt 0:00:06]} 11. Bc7 {[%emt 0:03:27]} Ne4 {[%emt 0:03:05]} 12. cxd5 {[%emt 0:12:39]} Nxd4 {[%emt 0:03:17]} 13. exd4 {[%emt 0:00:08]} exd5 {[%emt 0:00:05]} 14. f3 {[%emt 0:01:08]} Nf6 {[%emt 0:00:15]} 15. Be5 {[%emt 0:01:55]} O-O {[%emt 0:06:18]} 16. Bxf6 {[%emt 0:01:16]} gxf6 {[%emt 0:01:30]} 17. Bd3 {[%emt 0:01:03]} Be6 {[%emt 0:03:30]} 18. Rc1 {[%emt 0:01:21]} Rac8 {[%emt 0:01:51]} 19. Kf2 {[%emt 0:04:35]} Rfe8 {[%emt 0:02:59]} 20. Rhe1 {[%emt 0:04:03]} h6 {[%emt 0:02:15]} 21. Bb5 {[%emt 0:03:53]} Red8 {[%emt 0:03:42]} 22. Bd3 {[%emt 0:03:28]} Kf8 {[%emt 0:00:59]} 23. f4 {[%emt 0:02:31]} Rxc1 {[%emt 0:03:51]} 24. Rxc1 {[%emt 0:00:06]} Rc8 {[%emt 0:00:03]} 25. Rxc8+ {[%emt 0:00:48]} Bxc8 {[%emt 0:00:08]} 26. Ke3 {[%emt 0:01:56]} f5 {[%emt 0:02:56]} 27. Kf3 {[%emt 0:01:26]} Kg7 {[%emt 0:00:37]} 28. h3 {[%emt 0:05:11]} h5 {[%emt 0:00:49]} 29. Kg3 {[%emt 0:00:44]} Kg6 {[%emt 0:00:30]} 30. Kh4 {[%emt 0:00:26]} Kh6 {[%emt 0:00:47]} 31. Be2 {[%emt 0:00:32]} Be6 {[%emt 0:01:34]} 32. Bxh5 {[%emt 0:00:12]} f6 {[%emt 0:01:15]} 33. Bf3 {[%emt 0:01:13]} Kg6 {[%emt 0:01:16]} 34. Kg3 {[%emt 0:02:33]} Kh6 {[%emt 0:00:28]} 35. Kf2 {[%emt 0:00:34]} Kg7 {[%emt 0:00:32]} 36. Ke3 {[%emt 0:01:01]} Kf7 {[%emt 0:00:17]} 37. Kd3 {[%emt 0:00:14]} Ke7 {[%emt 0:00:29]} 38. Kc3 {[%emt 0:00:21]} a6 {[%emt 0:00:56]} 39. Kb4 {[%emt 0:00:11]} Kd6 {[%emt 0:00:03]} 40. Bh5 {[%emt 0:01:17]} Kc6 {[%emt 0:01:03]} 41. Bg6 {[%emt 0:30:28]} b6 {[%emt 0:30:26]} 42. h4 {[%emt 0:00:43]} Kd7 {[%emt 0:00:21]} 43. h5 {[%emt 0:00:33]} Ke7 {[%emt 0:00:24]} 44. a4 {[%emt 0:00:25]} Bd7 {[%emt 0:01:52]} 45. a5 {[%emt 0:01:38]} bxa5+ {[%emt 0:00:22]} 46. Kxa5 {[%emt 0:00:13]} Bb5 {[%emt 0:00:17]} 47. Bxf5 {[%emt 0:00:50]} Kf7 {[%emt 0:00:30]} 48. b3 {[%emt 0:01:23]} Be2 {[%emt 0:00:24]} 49. Bg6+ {[%emt 0:00:09]} Kg7 {[%emt 0:00:25]} 50. Kb6 {[%emt 0:01:37]} Bd1 {[%emt 0:01:05]} 51. b4 {[%emt 0:00:00]} Be2 {[%emt 0:00:00]} 52. Kc5 {[%emt 0:00:00]} Bc4 {[%emt 0:00:00]} 53. Bf5 {[%emt 0:00:00]} Kh6 {[%emt 0:00:00]} 54. g4 {[%emt 0:00:00]} Kg7 {[%emt 0:00:00]} 55. Be6 {[%emt 0:00:00]} Kh6 {[%emt 0:00:00]} 56. Bxd5 {[%emt 0:00:00]} 1-0

[Event "Czech Youth U14 Girls 2024"]
[Site "Kouty nad Desnou"]
[Date "2024.03.11"]
[Round "3.4"]
[White "Nova, Doubravka Anezka"]
[Black "Strazhnyk, Viktoriia"]
[Result "1-0"]
[ECO "B53"]
[WhiteElo "1718"]
[BlackElo "1570"]
[Annotator "NA RC"]
[PlyCount "113"]
[EventDate "2024.03.10"]
[EventType "swiss"]
[EventCountry "CZE"]
[SourceTitle "playchess.com"]
[Source "ChessBase"]
[SourceQuality "1"]
[TimeControl "40/5400+30:1800+30"]

1. e4 {[%emt 0:00:01]} c5 {[%emt 0:00:05]} 2. Nf3 {[%emt 0:00:07]} d6 {[%emt 0:00:03]} 3. d4 {[%emt 0:00:05]} cxd4 {[%emt 0:00:04]} 4. Qxd4 {[%emt 0:00:07]} Nc6 {[%emt 0:00:11]} 5. Bb5 {[%emt 0:00:06]} Bd7 {[%emt 0:00:06]} 6. Bxc6 {[%emt 0:00:08]} Bxc6 {[%emt 0:00:07]} 7. Nc3 {[%emt 0:00:05]} Nf6 {[%emt 0:00:08]} 8. Bg5 {[%emt 0:00:06]} e6 {[%emt 0:00:07]} 9. O-O-O {[%emt 0:00:08]} Be7 {[%emt 0:00:08]} 10. Kb1 {[%emt 0:00:34]} Qc7 {[%emt 0:00:28]} 11. Rhe1 {[%emt 0:01:15]} O-O {[%emt 0:00:24]} 12. Nd2 {[%emt 0:11:30]} b5 {[%emt 0:02:50]} 13. f4 {[%emt 0:07:33]} Rfd8 {[%emt 0:02:40]} 14. Qe3 {[%emt 0:09:17]} h6 {[%emt 0:02:43]} 15. Bxf6 {[%emt 0:06:41]} Bxf6 {[%emt 0:00:31]} 16. g4 {[%emt 0:05:35]} g5 {[%emt 0:02:23]} 17. Qh3 {[%emt 0:11:50]} Kh7 {[%emt 0:15:32]} 18. Nf3 {[%emt 0:05:01]} Rg8 {[%emt 0:07:35]} 19. fxg5 {[%emt 0:06:31]} Bxg5 {[%emt 0:01:43]} 20. Qg3 {[%emt 0:02:55]} e5 {[%emt 0:04:34]} 21. Nxg5+ {[%emt 0:05:23]} Rxg5 {[%emt 0:04:58]} 22. h4 {[%emt 0:00:37]} Rg7 {[%emt 0:00:32]} 23. Nd5 {[%emt 0:05:05]} Bxd5 {[%emt 0:01:54]} 24. Rxd5 {[%emt 0:00:08]} Rag8 {[%emt 0:03:56]} 25. Qf3 {[%emt 0:07:52]} Rxg4 {[%emt 0:06:06]} 26. Qf5+ {[%emt 0:00:25]} Kh8 {[%emt 0:00:19]} 27. Red1 {[%emt 0:01:28]} Qe7 {[%emt 0:02:06]} 28. a3 {[%emt 0:04:51]} Rf4 {[%emt 0:09:46]} 29. Qh3 {[%emt 0:00:52]} Rxh4 {[%emt 0:02:28]} 30. Qd3 {[%emt 0:00:33]} Qb7 {[%emt 0:09:45]} 31. Rxd6 {[%emt 0:01:00]} Qxe4 {[%emt 0:00:40]} 32. Rxh6+ {[%emt 0:00:39]} Kg7 {[%emt 0:00:33]} 33. Rxh4 {[%emt 0:01:06]} Qxh4 {[%emt 0:00:17]} 34. Qxb5 {[%emt 0:00:22]} Qe7 {[%emt 0:04:56]} 35. Qd5 {[%emt 0:01:38]} Re8 {[%emt 0:03:31]} 36. Rg1+ {[%emt 0:01:50]} Kf8 {[%emt 0:00:24]} 37. c4 {[%emt 0:00:29]} e4 {[%emt 0:01:01]} 38. Qd4 {[%emt 0:01:10]} f6 {[%emt 0:01:24]} 39. Qd5 {[%emt 0:01:12]} Qe6 {[%emt 0:00:18]} 40. Qxe6 {[%emt 0:01:27]} Rxe6 {[%emt 0:00:12]} 41. Rf1 {[%emt 0:30:56]} Ke7 {[%emt 0:31:18]} 42. Kc2 {[%emt 0:00:52]} Kd6 {[%emt 0:00:13]} 43. Rf5 {[%emt 0:01:59]} Ke7 {[%emt 0:08:28]} 44. Kd2 {[%emt 0:00:00]} Rb6 {[%emt 0:00:00]} 45. b4 {[%emt 0:00:00]} Rd6+ {[%emt 0:00:00]} 46. Ke3 {[%emt 0:00:00]} Rd3+ {[%emt 0:00:00]} 47. Kxe4 {[%emt 0:00:00]} Rxa3 {[%emt 0:00:00]} 48. Kd5 {[%emt 0:00:00]} a5 {[%emt 0:00:00]} 49. b5 {[%emt 0:00:00]} a4 {[%emt 0:00:00]} 50. Kc5 {[%emt 0:00:00]} Rb3 {[%emt 0:00:00]} 51. Rf2 {[%emt 0:00:00]} a3 {[%emt 0:00:00]} 52. Ra2 {[%emt 0:00:00]} Kd7 {[%emt 0:00:00]} 53. b6 {[%emt 0:00:00]} f5 {[%emt 0:00:00]} 54. Rd2+ {[%emt 0:00:00]} Kc8 {[%emt 0:00:00]} 55. Kc6 {[%emt 0:00:00]} Rb2 {[%emt 0:00:00]} 56. Rd3 {[%emt 0:00:00]} Rb4 {[%emt 0:00:00]} 57. c5 {[%emt 0:00:00]} 1-0

[Event "Czech Youth U14 Girls 2024"]
[Site "Kouty nad Desnou"]
[Date "2024.03.11"]
[Round "3.5"]
[White "Sochorova, Valentyna"]
[Black "Kammova, Katerina"]
[Result "0-1"]
[ECO "B12"]
[WhiteElo "1485"]
[BlackElo "1781"]
[Annotator "NA RC"]
[PlyCount "68"]
[EventDate "2024.03.10"]
[EventType "swiss"]
[EventCountry "CZE"]
[SourceTitle "playchess.com"]
[Source "ChessBase"]
[SourceQuality "1"]
[TimeControl "40/5400+30:1800+30"]

1. e4 {[%emt 0:00:03]} c6 {[%emt 0:00:09]} 2. d4 {[%emt 0:00:09]} d5 {[%emt 0:00:30]} 3. f3 {[%emt 0:00:15]} e6 {[%emt 0:02:24]} 4. Nc3 {[%emt 0:00:47]} Nf6 {[%emt 0:01:45]} 5. Qd3 {[%emt 0:08:53]} b6 {[%emt 0:07:04]} 6. Nge2 {[%emt 0:05:31]} Be7 {[%emt 0:04:40]} 7. Bf4 a5 {[%emt 0:13:25]} 8. O-O-O {[%emt 0:21:30]} Ba6 {[%emt 0:08:23]} 9. Qe3 {[%emt 0:01:24]} b5 {[%emt 0:05:16]} 10. h4 {[%emt 0:17:54]} Nbd7 {[%emt 0:03:42]} 11. e5 {[%emt 0:05:53]} Ng8 {[%emt 0:02:04]} 12. Bg5 {[%emt 0:06:06]} Nb6 {[%emt 0:05:14]} 13. g4 {[%emt 0:12:39]} Nc4 {[%emt 0:19:27]} 14. Qf4 {[%emt 0:02:24]} h6 {[%emt 0:02:27]} 15. Bxe7 {[%emt 0:01:42]} Qxe7 {[%emt 0:00:48]} 16. Bh3 {[%emt 0:08:17]} Qb4 {[%emt 0:10:04]} 17. Rdg1 {[%emt 0:03:30]} Qxb2+ {[%emt 0:10:08]} 18. Kd1 {[%emt 0:00:03]} b4 {[%emt 0:00:52]} 19. Na4 {[%emt 0:01:22]} Qxa2 {[%emt 0:00:36]} 20. Nc5 {[%emt 0:00:18]} Bb5 {[%emt 0:00:17]} 21. Qc1 {[%emt 0:01:24]} a4 {[%emt 0:01:02]} 22. Nf4 {[%emt 0:00:52]} b3 {[%emt 0:00:35]} 23. cxb3 {[%emt 0:00:29]} axb3 {[%emt 0:00:20]} 24. Nfd3 {[%emt 0:00:30]} b2 {[%emt 0:00:44]} 25. Nxb2 {[%emt 0:00:19]} Nxb2+ {[%emt 0:00:07]} 26. Kd2 {[%emt 0:00:42]} Ne7 {[%emt 0:00:53]} 27. Ke3 {[%emt 0:00:25]} Ng6 {[%emt 0:00:22]} 28. Rg2 {[%emt 0:00:38]} Ra3+ {[%emt 0:00:24]} 29. Kf2 {[%emt 0:00:17]} Nd3+ {[%emt 0:00:11]} 30. Kg3 {[%emt 0:00:19]} Nxc1 {[%emt 0:00:43]} 31. Rxa2 {[%emt 0:00:07]} Nxa2 {[%emt 0:00:14]} 32. Ra1 {[%emt 0:00:33]} O-O {[%emt 0:00:19]} 33. Bf1 {[%emt 0:01:03]} Bxf1 {[%emt 0:00:11]} 34. Rxf1 {[%emt 0:00:02]} Rb8 {[%emt 0:00:14]} 0-1

[Event "Czech Youth U14 Girls 2024"]
[Site "Kouty nad Desnou"]
[Date "2024.03.11"]
[Round "3.6"]
[White "Hladka, Leontyna"]
[Black "Nguyen Nhat, Minh Thu"]
[Result "0-1"]
[ECO "B90"]
[WhiteElo "1683"]
[BlackElo "1563"]
[Annotator "NA RC"]
[PlyCount "56"]
[EventDate "2024.03.10"]
[EventType "swiss"]
[EventCountry "CZE"]
[SourceTitle "playchess.com"]
[Source "ChessBase"]
[SourceQuality "1"]
[TimeControl "40/5400+30:1800+30"]

1. e4 {[%emt 0:00:03]} c5 {[%emt 0:00:20]} 2. Nf3 {[%emt 0:00:06]} d6 {[%emt 0:00:10]} 3. d4 {[%emt 0:00:14]} cxd4 {[%emt 0:00:19]} 4. Nxd4 {[%emt 0:00:08]} Nf6 {[%emt 0:00:12]} 5. Nc3 {[%emt 0:00:20]} a6 {[%emt 0:00:11]} 6. f3 {[%emt 0:00:23]} e6 {[%emt 0:00:51]} 7. Be3 {[%emt 0:00:18]} Be7 {[%emt 0:00:19]} 8. Qd2 {[%emt 0:02:13]} Nc6 {[%emt 0:03:32]} 9. Nxc6 {[%emt 0:01:44]} bxc6 {[%emt 0:00:53]} 10. O-O-O {[%emt 0:01:53]} d5 {[%emt 0:12:56]} 11. Qf2 {[%emt 0:07:55]} Bb4 {[%emt 0:34:27]} 12. Nb1 {[%emt 0:14:33]} Qc7 {[%emt 0:12:36]} 13. a3 {[%emt 0:05:08]} Bd6 {[%emt 0:01:29]} 14. Qh4 {[%emt 0:05:53]} Be7 {[%emt 0:09:10]} 15. Qg5 {[%emt 0:10:31]} Kf8 {[%emt 0:04:03]} 16. Bd4 {[%emt 0:10:03]} h6 {[%emt 0:03:37]} 17. Qe3 {[%emt 0:09:47]} Nd7 {[%emt 0:03:24]} 18. Qf2 {[%emt 0:05:10]} Bg5+ {[%emt 0:03:35]} 19. Be3 {[%emt 0:01:05]} Be7 {[%emt 0:01:18]} 20. Nd2 {[%emt 0:01:08]} c5 {[%emt 0:00:45]} 21. exd5 {[%emt 0:01:15]} exd5 {[%emt 0:00:23]} 22. g3 {[%emt 0:02:17]} Bf6 {[%emt 0:01:10]} 23. Bf4 {[%emt 0:04:24]} Qb6 {[%emt 0:01:00]} 24. b4 {[%emt 0:02:05]} g5 {[%emt 0:00:19]} 25. Be3 {[%emt 0:00:32]} d4 {[%emt 0:00:16]} 26. bxc5 {[%emt 0:03:49]} Qxc5 {[%emt 0:00:48]} 27. Nb3 {[%emt 0:01:04]} Qxa3+ {[%emt 0:00:24]} 28. Kb1 {[%emt 0:00:11]} dxe3 {[%emt 0:00:18]} 0-1